[Event "EYCC Open-U16 2019"]
[Site "Bratislava"]
[Date "2019.08.10"]
[Round "9.13"]
[White "Ongut, Tamas Gunes"]
[Black "Veiga, Jose Francisco R P N"]
[Result "0-1"]
[ECO "B27"]
[WhiteElo "2158"]
[BlackElo "2357"]
[Annotator "NA"]
[PlyCount "82"]
[EventDate "2019.08.02"]
[EventType "swiss"]
[EventCountry "SVK"]
[SourceTitle "playchess.com"]
[Source "ChessBase"]
[SourceQuality "1"]
[TimeControl "40/5400+30:1800+30"]

1. e4 {[%emt 0:00:00]} c5 {[%emt 0:00:00]} 2. Nf3 {[%emt 0:00:00]} b6 {[%emt 0:00:23]} 3. g3 {[%emt 0:01:56]} Bb7 {[%emt 0:01:07]} 4. Nc3 {[%emt 0:00:16]} Nf6 {[%emt 0:02:14]} 5. Qe2 {[%emt 0:00:36]} d6 {[%emt 0:01:55]} 6. Bg2 {[%emt 0:01:32]} e6 {[%emt 0:00:22]} 7. O-O {[%emt 0:05:05]} a6 {[%emt 0:00:18]} 8. d4 {[%emt 0:01:38]} cxd4 {[%emt 0:00:29]} 9. Nxd4 {[%emt 0:00:06]} Qc7 {[%emt 0:01:21]} 10. a4 {[%emt 0:09:47]} Be7 {[%emt 0:00:23]} 11. Rd1 {[%emt 0:06:10]} Nbd7 {[%emt 0:01:04]} 12. h3 {[%emt 0:00:38]} Rc8 {[%emt 0:03:27]} 13. g4 {[%emt 0:07:22]} g6 {[%emt 0:09:35]} 14. Bh6 {[%emt 0:08:09]} Ne5 {[%emt 0:10:19]} 15. f4 {[%emt 0:08:30]} Nc4 {[%emt 0:00:12]} 16. Rab1 {[%emt 0:19:14]} e5 {[%emt 0:05:08]} 17. fxe5 {[%emt 0:04:51]} dxe5 {[%emt 0:00:18]} 18. g5 {[%emt 0:05:47]} Nh5 {[%emt 0:01:44]} 19. Nf5 {[%emt 0:01:19]} Bc5+ 20. Kh2 {[%emt 0:01:02]} Nf4 {[%emt 0:03:10]} 21. Qxc4 gxf5 22. Qf1 {[%emt 0:05:17]} Nxg2 {[%emt 0:03:05]} 23. Qxg2 {[%emt 0:00:23]} Bd4 {[%emt 0:00:51]} 24. Qe2 {[%emt 0:06:15]} Rg8 {[%emt 0:01:52]} 25. Rd3 {[%emt 0:01:23]} fxe4 {[%emt 0:00:44]} 26. Rg3 {[%emt 0:00:38]} e3 {[%emt 0:01:09]} 27. g6 {[%emt 0:02:55]} Rxg6 28. Rxg6 {[%emt 0:00:07]} hxg6 {[%emt 0:01:07]} 29. Bxe3 {[%emt 0:00:07]} Kf8 {[%emt 0:00:29]} 30. Re1 {[%emt 0:02:23]} Qc6 {[%emt 0:01:20]} 31. Bxd4 {[%emt 0:00:29]} exd4 {[%emt 0:00:02]} 32. Qe7+ {[%emt 0:00:56]} Kg8 {[%emt 0:00:10]} 33. Ne4 {[%emt 0:00:06]} Qxc2+ {[%emt 0:00:19]} 34. Kg3 {[%emt 0:00:10]} Bxe4 {[%emt 0:00:26]} 35. Rxe4 {[%emt 0:00:46]} Qxb2 {[%emt 0:00:52]} 36. Qf6 {[%emt 0:00:13]} Qd2 37. Rf4 {[%emt 0:01:37]} Qe1+ {[%emt 0:03:50]} 38. Kg4 {[%emt 0:00:22]} Qe2+ {[%emt 0:00:48]} 39. Rf3 {[%emt 0:00:30]} Qe6+ {[%emt 0:00:30]} 40. Qxe6 {[%emt 0:00:00]} fxe6 {[%emt 0:00:00]} 41. Kg5 {[%emt 0:00:20]} Kg7 {[%emt 0:02:16]} 0-1

[Event "EYCC Open-U16 2019"]
[Site "Bratislava"]
[Date "2019.08.10"]
[Round "9.14"]
[White "Niedbala, Bartlomiej"]
[Black "Milosevic, Milos"]
[Result "1/2-1/2"]
[ECO "B92"]
[WhiteElo "2152"]
[BlackElo "2312"]
[Annotator "NA"]
[PlyCount "44"]
[EventDate "2019.08.02"]
[EventType "swiss"]
[EventCountry "SVK"]
[SourceTitle "playchess.com"]
[Source "ChessBase"]
[SourceQuality "1"]
[TimeControl "40/5400+30:1800+30"]

1. e4 {[%emt 0:00:00]} c5 {[%emt 0:00:00]} 2. Nf3 {[%emt 0:00:00]} d6 {[%emt 0:00:00]} 3. d4 {[%emt 0:00:27]} cxd4 {[%emt 0:00:00]} 4. Nxd4 {[%emt 0:00:02]} Nf6 {[%emt 0:00:00]} 5. Nc3 {[%emt 0:00:04]} a6 {[%emt 0:00:00]} 6. Be2 {[%emt 0:00:06]} e5 {[%emt 0:00:00]} 7. Nf3 {[%emt 0:00:03]} Qc7 {[%emt 0:00:00]} 8. Bg5 {[%emt 0:00:26]} Nbd7 {[%emt 0:00:00]} 9. a4 {[%emt 0:00:05]} h6 {[%emt 0:00:19]} 10. Be3 {[%emt 0:01:49]} Nb6 {[%emt 0:00:26]} 11. O-O {[%emt 0:09:46]} Be6 {[%emt 0:01:28]} 12. Re1 {[%emt 0:10:32]} Rc8 {[%emt 0:03:47]} 13. Nd2 {[%emt 0:14:00]} Be7 {[%emt 0:03:20]} 14. a5 {[%emt 0:13:35]} Nc4 {[%emt 0:05:33]} 15. Bxc4 {[%emt 0:04:48]} Bxc4 {[%emt 0:00:03]} 16. Bb6 {[%emt 0:00:32]} Qc6 {[%emt 0:06:33]} 17. Nxc4 {[%emt 0:03:27]} Qxc4 {[%emt 0:00:04]} 18. Re3 {[%emt 0:09:50]} O-O {[%emt 0:01:06]} 19. Ra4 {[%emt 0:00:48]} Qe6 {[%emt 0:02:17]} 20. Rd3 {[%emt 0:00:57]} Nd7 {[%emt 0:08:27]} 21. Nd5 {[%emt 0:01:58]} Nxb6 {[%emt 0:02:58]} 22. Nxb6 {[%emt 0:02:36]} Rc6 {[%emt 0:03:16]} 1/2-1/2

[Event "EYCC Open-U16 2019"]
[Site "Bratislava"]
[Date "2019.08.10"]
[Round "9.15"]
[White "Stefansson, Vignir Vatnar"]
[Black "Cohen Revivo, Shoham"]
[Result "1-0"]
[ECO "D10"]
[WhiteElo "2293"]
[BlackElo "2254"]
[Annotator "NA"]
[PlyCount "153"]
[EventDate "2019.08.02"]
[EventType "swiss"]
[EventCountry "SVK"]
[SourceTitle "playchess.com"]
[Source "ChessBase"]
[SourceQuality "1"]
[TimeControl "40/5400+30:1800+30"]

1. d4 {[%emt 0:00:00]} d5 {[%emt 0:00:00]} 2. c4 {[%emt 0:00:00]} c6 {[%emt 0:00:00]} 3. Nc3 {[%emt 0:00:00]} Nf6 {[%emt 0:00:00]} 4. e3 {[%emt 0:00:00]} e6 {[%emt 0:00:06]} 5. Rb1 {[%emt 0:00:08]} Nbd7 {[%emt 0:01:32]} 6. Nf3 {[%emt 0:00:11]} Bd6 {[%emt 0:00:09]} 7. Bd3 {[%emt 0:00:18]} dxc4 {[%emt 0:00:13]} 8. Bxc4 {[%emt 0:00:04]} b5 {[%emt 0:00:10]} 9. Bd3 {[%emt 0:00:10]} O-O {[%emt 0:01:19]} 10. O-O {[%emt 0:18:41]} b4 {[%emt 0:05:37]} 11. Ne2 {[%emt 0:08:41]} c5 {[%emt 0:00:40]} 12. e4 {[%emt 0:01:22]} e5 {[%emt 0:15:31]} 13. dxe5 {[%emt 0:04:48]} Nxe5 {[%emt 0:00:07]} 14. Nxe5 {[%emt 0:00:05]} Bxe5 {[%emt 0:00:06]} 15. f4 {[%emt 0:04:27]} Bd4+ {[%emt 0:00:51]} 16. Kh1 {[%emt 0:00:11]} Bb7 {[%emt 0:03:08]} 17. Nxd4 {[%emt 0:14:33]} Qxd4 {[%emt 0:00:12]} 18. e5 {[%emt 0:00:36]} Ne4 {[%emt 0:00:57]} 19. Qe2 {[%emt 0:08:42]} Rad8 {[%emt 0:04:04]} 20. Bc4 {[%emt 0:02:03]} Nd2 {[%emt 0:05:26]} 21. Bxd2 {[%emt 0:00:28]} Qxd2 {[%emt 0:00:02]} 22. Rbd1 {[%emt 0:03:21]} Qxe2 {[%emt 0:01:02]} 23. Bxe2 {[%emt 0:00:03]} Bd5 {[%emt 0:00:12]} 24. b3 {[%emt 0:00:16]} a5 {[%emt 0:02:03]} 25. Rc1 {[%emt 0:04:21]} Be4 {[%emt 0:06:51]} 26. Rfd1 {[%emt 0:00:55]} g6 {[%emt 0:01:59]} 27. Kg1 {[%emt 0:02:37]} Rxd1+ {[%emt 0:03:46]} 28. Rxd1 {[%emt 0:00:13]} a4 {[%emt 0:01:15]} 29. Bc4 {[%emt 0:04:37]} axb3 {[%emt 0:01:39]} 30. axb3 {[%emt 0:00:11]} Bf5 {[%emt 0:01:24]} 31. Rd6 {[%emt 0:02:00]} Rc8 {[%emt 0:00:28]} 32. Kf2 {[%emt 0:01:06]} Rc7 {[%emt 0:01:29]} 33. h3 {[%emt 0:00:55]} Kg7 {[%emt 0:04:19]} 34. g4 {[%emt 0:01:45]} Be4 {[%emt 0:04:40]} 35. h4 {[%emt 0:01:18]} Re7 {[%emt 0:02:47]} 36. Rd8 {[%emt 0:00:31]} Bb7 {[%emt 0:08:15]} 37. Kg3 {[%emt 0:01:44]} Be4 {[%emt 0:10:25]} 38. Rc8 {[%emt 0:01:34]} Rd7 {[%emt 0:03:23]} 39. Rxc5 {[%emt 0:00:34]} h5 {[%emt 0:05:24]} 40. gxh5 {[%emt 0:00:00]} gxh5 {[%emt 0:00:00]} 41. Kf2 {[%emt 0:00:45]} Bd3 {[%emt 0:02:25]} 42. Bd5 {[%emt 0:00:58]} Bf5 {[%emt 0:00:36]} 43. Ke3 {[%emt 0:00:21]} Kf8 {[%emt 0:05:10]} 44. Rb5 {[%emt 0:00:29]} Ke7 {[%emt 0:00:44]} 45. Bc4 {[%emt 0:00:24]} f6 {[%emt 0:01:40]} 46. Rxb4 {[%emt 0:00:14]} fxe5 {[%emt 0:00:09]} 47. fxe5 {[%emt 0:00:06]} Bg4 {[%emt 0:01:48]} 48. Rb6 {[%emt 0:00:13]} Rd1 {[%emt 0:00:24]} 49. Rb7+ {[%emt 0:00:18]} Kd8 {[%emt 0:00:07]} 50. Kf4 {[%emt 0:00:23]} Re1 {[%emt 0:01:19]} 51. Rb5 {[%emt 0:01:25]} Kd7 {[%emt 0:01:26]} 52. Kg5 {[%emt 0:00:24]} Kc6 {[%emt 0:00:08]} 53. Kf6 {[%emt 0:00:21]} Re3 {[%emt 0:03:05]} 54. Ra5 {[%emt 0:00:40]} Rf3+ {[%emt 0:00:17]} 55. Ke7 {[%emt 0:00:06]} Rh3 {[%emt 0:00:23]} 56. e6 {[%emt 0:01:11]} Rxh4 {[%emt 0:00:30]} 57. Kd8 {[%emt 0:00:10]} Bxe6 {[%emt 0:02:03]} 58. Ra6+ {[%emt 0:00:18]} Kc5 {[%emt 0:00:12]} 59. Rxe6 {[%emt 0:00:07]} Rd4+ {[%emt 0:00:11]} 60. Kc7 {[%emt 0:00:05]} h4 {[%emt 0:00:07]} 61. Rh6 {[%emt 0:00:04]} Kb4 {[%emt 0:00:29]} 62. Kc6 {[%emt 0:00:11]} Rf4 {[%emt 0:00:40]} 63. Kd5 {[%emt 0:00:06]} Rg4 {[%emt 0:00:41]} 64. Ke5 {[%emt 0:00:05]} Rg5+ {[%emt 0:00:14]} 65. Kf4 {[%emt 0:00:06]} Rg1 {[%emt 0:00:10]} 66. Rxh4 {[%emt 0:00:09]} Re1 {[%emt 0:00:07]} 67. Rh3 {[%emt 0:00:09]} Re8 {[%emt 0:00:09]} 68. Re3 {[%emt 0:00:06]} Rf8+ {[%emt 0:00:06]} 69. Ke4 {[%emt 0:00:04]} Re8+ {[%emt 0:00:09]} 70. Kd3 {[%emt 0:00:07]} Rd8+ {[%emt 0:00:14]} 71. Kc2 {[%emt 0:00:05]} Rb8 {[%emt 0:00:07]} 72. Re4 {[%emt 0:00:08]} Rb6 {[%emt 0:00:14]} 73. Bd3+ {[%emt 0:00:05]} Kc5 {[%emt 0:00:07]} 74. Kc3 {[%emt 0:00:02]} Kd5 {[%emt 0:00:16]} 75. Rc4 {[%emt 0:00:05]} Rh6 {[%emt 0:00:21]} 76. b4 {[%emt 0:00:05]} Rh3 {[%emt 0:00:17]} 77. b5 {[%emt 0:00:06]} 1-0

[Event "EYCC Open-U16 2019"]
[Site "Bratislava"]
[Date "2019.08.10"]
[Round "9.16"]
[White "Sargsyan, Tigran R."]
[Black "Ivanovic, Marko"]
[Result "1-0"]
[ECO "A41"]
[WhiteElo "2314"]
[BlackElo "2267"]
[Annotator "NA"]
[PlyCount "103"]
[EventDate "2019.08.02"]
[EventType "swiss"]
[EventCountry "SVK"]
[SourceTitle "playchess.com"]
[Source "ChessBase"]
[SourceQuality "1"]
[TimeControl "40/5400+30:1800+30"]

1. d4 {[%emt 0:00:00]} d6 {[%emt 0:01:36]} 2. Nf3 {[%emt 0:00:00]} f5 {[%emt 0:00:16]} 3. Nc3 {[%emt 0:00:10]} Nf6 {[%emt 0:00:12]} 4. Bg5 {[%emt 0:00:12]} Nbd7 {[%emt 0:00:21]} 5. Qd3 {[%emt 0:00:34]} e6 {[%emt 0:22:13]} 6. e4 {[%emt 0:02:36]} fxe4 {[%emt 0:00:33]} 7. Nxe4 {[%emt 0:00:07]} Be7 {[%emt 0:03:46]} 8. Ng3 {[%emt 0:06:24]} c6 {[%emt 0:10:20]} 9. Qd2 {[%emt 0:04:39]} Qc7 {[%emt 0:34:24]} 10. Bd3 {[%emt 0:08:41]} Nf8 {[%emt 0:00:04]} 11. O-O-O {[%emt 0:02:28]} Bd7 {[%emt 0:00:12]} 12. Rhe1 {[%emt 0:00:32]} O-O-O {[%emt 0:00:08]} 13. Nf5 {[%emt 0:01:21]} Be8 {[%emt 0:06:53]} 14. Nxg7 {[%emt 0:03:22]} Qd7 {[%emt 0:02:51]} 15. Nxe6 {[%emt 0:03:16]} Nxe6 {[%emt 0:00:08]} 16. Bf5 {[%emt 0:00:17]} Bf7 {[%emt 0:00:12]} 17. Qe2 {[%emt 0:00:35]} Nd5 {[%emt 0:00:13]} 18. Bxe6 {[%emt 0:01:18]} Bxe6 {[%emt 0:00:10]} 19. Qxe6 {[%emt 0:00:31]} Qxe6 {[%emt 0:00:16]} 20. Rxe6 {[%emt 0:00:08]} Bxg5+ {[%emt 0:00:03]} 21. Nxg5 {[%emt 0:00:13]} Rhf8 {[%emt 0:04:58]} 22. f3 {[%emt 0:03:42]} Nf4 {[%emt 0:00:32]} 23. Re4 {[%emt 0:00:25]} Nxg2 {[%emt 0:01:38]} 24. Ne6 {[%emt 0:00:25]} Rxf3 {[%emt 0:00:25]} 25. Nxd8 {[%emt 0:00:08]} Kxd8 {[%emt 0:00:02]} 26. Rg1 {[%emt 0:01:15]} Rf2 {[%emt 0:00:10]} 27. Rg4 {[%emt 0:01:50]} Ne3 {[%emt 0:00:28]} 28. Rg8+ {[%emt 0:00:35]} Kc7 {[%emt 0:00:58]} 29. R1g7+ {[%emt 0:01:01]} Kb6 {[%emt 0:00:03]} 30. Rb8 {[%emt 0:00:22]} Rxc2+ {[%emt 0:00:07]} 31. Kb1 {[%emt 0:00:04]} Kb5 {[%emt 0:01:00]} 32. Rxh7 {[%emt 0:11:01]} b6 {[%emt 0:00:55]} 33. Re8 {[%emt 0:03:13]} Re2 {[%emt 0:00:04]} 34. a4+ {[%emt 0:00:52]} Kc4 {[%emt 0:00:43]} 35. Rhe7 {[%emt 0:00:13]} Kxd4 {[%emt 0:00:11]} 36. h4 {[%emt 0:00:19]} d5 {[%emt 0:00:44]} 37. h5 {[%emt 0:00:19]} Rh2 38. Rxe3 {[%emt 0:00:12]} Rxh5 {[%emt 0:00:58]} 39. Rc3 {[%emt 0:01:03]} Rh6 {[%emt 0:00:15]} 40. Re7 {[%emt 0:00:00]} a5 {[%emt 0:00:00]} 41. Rb7 {[%emt 0:01:10]} c5 {[%emt 0:00:16]} 42. Rb3 {[%emt 0:00:15]} c4 {[%emt 0:01:04]} 43. R3xb6 {[%emt 0:00:18]} Rh1+ {[%emt 0:00:04]} 44. Ka2 {[%emt 0:00:07]} Kd3 {[%emt 0:00:05]} 45. Rd6 {[%emt 0:00:59]} d4 {[%emt 0:00:19]} 46. Rbd7 {[%emt 0:00:48]} Rh4 {[%emt 0:00:07]} 47. Rd5 {[%emt 0:00:29]} Ke3 {[%emt 0:00:12]} 48. Rxa5 {[%emt 0:00:12]} Rh2 {[%emt 0:00:27]} 49. Re5+ {[%emt 0:00:39]} Kf4 {[%emt 0:01:03]} 50. Rc5 {[%emt 0:00:18]} c3 {[%emt 0:00:12]} 51. Rxd4+ {[%emt 0:00:12]} Ke3 {[%emt 0:00:01]} 52. Rb4 {[%emt 0:00:18]} 1-0

[Event "EYCC Open-U16 2019"]
[Site "Bratislava"]
[Date "2019.08.10"]
[Round "9.19"]
[White "Boyer, Mahel"]
[Black "Kazmin, Semen"]
[Result "0-1"]
[ECO "E61"]
[WhiteElo "2295"]
[BlackElo "2193"]
[Annotator "NA"]
[PlyCount "104"]
[EventDate "2019.08.02"]
[EventType "swiss"]
[EventCountry "SVK"]
[SourceTitle "playchess.com"]
[Source "ChessBase"]
[SourceQuality "1"]
[TimeControl "40/5400+30:1800+30"]

1. d4 {[%emt 0:00:00]} Nf6 {[%emt 0:00:00]} 2. c4 {[%emt 0:00:00]} g6 {[%emt 0:00:03]} 3. Nc3 {[%emt 0:00:00]} Bg7 {[%emt 0:00:06]} 4. Nf3 {[%emt 0:00:00]} d6 {[%emt 0:00:06]} 5. h3 {[%emt 0:00:00]} O-O {[%emt 0:00:07]} 6. Bg5 {[%emt 0:00:00]} h6 {[%emt 0:00:09]} 7. Bh4 {[%emt 0:00:00]} c5 {[%emt 0:00:36]} 8. d5 {[%emt 0:00:28]} Nbd7 {[%emt 0:00:25]} 9. e4 {[%emt 0:01:16]} a6 {[%emt 0:02:15]} 10. Nd2 {[%emt 0:10:12]} Ne8 {[%emt 0:05:36]} 11. Be2 {[%emt 0:00:50]} b5 {[%emt 0:00:57]} 12. cxb5 {[%emt 0:00:32]} axb5 {[%emt 0:00:03]} 13. Bxb5 {[%emt 0:01:06]} Ba6 {[%emt 0:00:42]} 14. Bxa6 {[%emt 0:01:02]} Rxa6 {[%emt 0:00:07]} 15. O-O {[%emt 0:00:09]} Nc7 {[%emt 0:05:11]} 16. Qe2 {[%emt 0:02:04]} Qa8 {[%emt 0:02:58]} 17. Nc4 {[%emt 0:06:04]} Re8 {[%emt 0:03:43]} 18. f4 {[%emt 0:05:21]} Nb6 {[%emt 0:01:44]} 19. f5 {[%emt 0:06:56]} Nxc4 {[%emt 0:04:04]} 20. Qxc4 {[%emt 0:03:12]} g5 {[%emt 0:00:08]} 21. Bg3 {[%emt 0:00:29]} Bd4+ {[%emt 0:00:43]} 22. Kh2 {[%emt 0:04:12]} Rb8 {[%emt 0:03:15]} 23. Rab1 {[%emt 0:19:13]} Rab6 {[%emt 0:01:43]} 24. b3 {[%emt 0:02:20]} Qa6 {[%emt 0:03:51]} 25. Rbc1 {[%emt 0:09:31]} Qxc4 {[%emt 0:05:53]} 26. bxc4 {[%emt 0:01:29]} Ra8 {[%emt 0:02:55]} 27. Ne2 {[%emt 0:04:25]} Bg7 {[%emt 0:05:26]} 28. e5 {[%emt 0:03:43]} Bxe5 {[%emt 0:10:05]} 29. Bxe5 {[%emt 0:00:06]} dxe5 {[%emt 0:00:03]} 30. Nc3 {[%emt 0:00:50]} Ne8 {[%emt 0:03:18]} 31. Ne4 {[%emt 0:03:07]} Rxa2 {[%emt 0:02:55]} 32. Nxc5 {[%emt 0:02:58]} Rbb2 {[%emt 0:01:24]} 33. Rg1 {[%emt 0:00:33]} Nd6 {[%emt 0:00:29]} 34. Nd3 {[%emt 0:01:34]} Rd2 {[%emt 0:00:40]} 35. Nxe5 {[%emt 0:01:08]} Nxf5 {[%emt 0:00:18]} 36. Nf3 {[%emt 0:02:20]} Rf2 {[%emt 0:02:20]} 37. Rcf1 {[%emt 0:04:40]} Rxf1 {[%emt 0:00:17]} 38. Rxf1 {[%emt 0:00:01]} Ne3 {[%emt 0:00:06]} 39. Rg1 {[%emt 0:03:53]} Nxc4 {[%emt 0:00:06]} 40. Re1 {[%emt 0:00:00]} Kf8 {[%emt 0:00:00]} 41. Nd4 {[%emt 0:00:38]} Rd2 {[%emt 0:03:59]} 42. Nc6 {[%emt 0:04:55]} Rxd5 {[%emt 0:00:08]} 43. Nxe7 {[%emt 0:01:48]} Rc5 {[%emt 0:00:10]} 44. g4 {[%emt 0:00:04]} Ne5 {[%emt 0:00:15]} 45. Rxe5 {[%emt 0:01:10]} Rxe5 {[%emt 0:00:06]} 46. Nc6 {[%emt 0:00:02]} Re4 {[%emt 0:00:21]} 47. Kg3 {[%emt 0:00:01]} Kg7 {[%emt 0:00:25]} 48. Na5 {[%emt 0:00:16]} Kg6 {[%emt 0:00:16]} 49. Nb7 {[%emt 0:00:02]} Re3+ {[%emt 0:00:23]} 50. Kg2 {[%emt 0:00:04]} f5 {[%emt 0:00:29]} 51. gxf5+ {[%emt 0:00:19]} Kxf5 {[%emt 0:00:06]} 52. Nd6+ {[%emt 0:00:01]} Kf4 {[%emt 0:00:09]} 0-1

[Event "EYCC Open-U16 2019"]
[Site "Bratislava"]
[Date "2019.08.10"]
[Round "9.20"]
[White "Fecker, Noah"]
[Black "Stremavicius, Pijus"]
[Result "1/2-1/2"]
[ECO "B07"]
[WhiteElo "2313"]
[BlackElo "2071"]
[Annotator "NA"]
[PlyCount "54"]
[EventDate "2019.08.02"]
[EventType "swiss"]
[EventCountry "SVK"]
[SourceTitle "playchess.com"]
[Source "ChessBase"]
[SourceQuality "1"]
[TimeControl "40/5400+30:1800+30"]

1. e4 {[%emt 0:00:00]} d6 {[%emt 0:00:00]} 2. d4 {[%emt 0:00:00]} Nf6 {[%emt 0:00:00]} 3. Nc3 {[%emt 0:00:00]} g6 {[%emt 0:00:00]} 4. Be3 {[%emt 0:00:00]} c6 {[%emt 0:00:00]} 5. Qd2 {[%emt 0:00:00]} Nbd7 {[%emt 0:00:00]} 6. Nf3 {[%emt 0:00:51]} b5 {[%emt 0:02:24]} 7. Bd3 {[%emt 0:01:03]} Bb7 {[%emt 0:01:32]} 8. O-O {[%emt 0:10:59]} Bg7 {[%emt 0:02:52]} 9. Bh6 {[%emt 0:05:54]} O-O {[%emt 0:00:17]} 10. a4 {[%emt 0:08:54]} b4 {[%emt 0:05:44]} 11. Ne2 {[%emt 0:00:42]} c5 {[%emt 0:03:38]} 12. Ng3 {[%emt 0:04:00]} Qc7 {[%emt 0:01:45]} 13. c3 {[%emt 0:06:51]} bxc3 {[%emt 0:06:28]} 14. bxc3 {[%emt 0:00:10]} e5 {[%emt 0:00:26]} 15. d5 {[%emt 0:08:39]} Qa5 {[%emt 0:05:29]} 16. Bb5 {[%emt 0:06:43]} Ba6 {[%emt 0:06:01]} 17. Bxd7 {[%emt 0:09:52]} Nxd7 {[%emt 0:08:35]} 18. Nf5 {[%emt 0:02:29]} Bf6 {[%emt 0:01:02]} 19. Bxf8 {[%emt 0:03:18]} gxf5 {[%emt 0:02:31]} 20. Bh6 {[%emt 0:03:09]} Bxf1 {[%emt 0:00:56]} 21. Kxf1 {[%emt 0:01:33]} fxe4 {[%emt 0:01:06]} 22. Ng5 {[%emt 0:00:42]} Qa6+ {[%emt 0:00:10]} 23. Kg1 {[%emt 0:00:45]} Qd3 {[%emt 0:00:17]} 24. Qe1 {[%emt 0:01:38]} Bxg5 {[%emt 0:02:02]} 25. Bxg5 {[%emt 0:00:03]} Qxd5 {[%emt 0:00:24]} 26. Rd1 {[%emt 0:01:03]} Qe6 {[%emt 0:00:29]} 27. Qxe4 {[%emt 0:00:46]} Rb8 {[%emt 0:00:10]} 1/2-1/2

[Event "EYCC Open-U16 2019"]
[Site "Bratislava"]
[Date "2019.08.10"]
[Round "9.26"]
[White "Risteski, Emil"]
[Black "Neiman, Maks"]
[Result "1/2-1/2"]
[ECO "C06"]
[WhiteElo "2150"]
[BlackElo "1971"]
[Annotator "RC"]
[PlyCount "52"]
[EventDate "2019.08.02"]
[EventType "swiss"]
[EventCountry "SVK"]
[SourceTitle "playchess.com"]
[Source "ChessBase"]
[SourceQuality "1"]
[TimeControl "40/5400+30:1800+30"]

1. e4 {[%emt 0:00:00]} e6 {[%emt 0:00:00]} 2. d4 {[%emt 0:00:00]} d5 {[%emt 0:00:00]} 3. Nd2 {[%emt 0:00:00]} Nf6 {[%emt 0:00:08]} 4. e5 {[%emt 0:00:00]} Nfd7 {[%emt 0:00:08]} 5. Bd3 {[%emt 0:00:01]} c5 {[%emt 0:00:21]} 6. c3 {[%emt 0:00:06]} Nc6 {[%emt 0:00:16]} 7. Ne2 {[%emt 0:00:05]} cxd4 {[%emt 0:00:15]} 8. cxd4 {[%emt 0:00:03]} f6 {[%emt 0:00:24]} 9. exf6 {[%emt 0:00:05]} Nxf6 {[%emt 0:00:06]} 10. Nf3 {[%emt 0:00:12]} Bd6 {[%emt 0:00:33]} 11. O-O {[%emt 0:00:07]} Qc7 {[%emt 0:00:21]} 12. Ng3 {[%emt 0:00:51]} O-O {[%emt 0:00:55]} 13. Bd2 {[%emt 0:00:34]} Bd7 {[%emt 0:02:17]} 14. Rc1 {[%emt 0:04:25]} Qb6 {[%emt 0:02:40]} 15. Bc3 {[%emt 0:00:23]} Bf4 {[%emt 0:01:51]} 16. Rc2 {[%emt 0:00:43]} Nb4 {[%emt 0:08:30]} 17. Bxb4 {[%emt 0:00:20]} Qxb4 {[%emt 0:00:06]} 18. Ne5 {[%emt 0:08:02]} g6 {[%emt 0:19:03]} 19. Nxd7 {[%emt 0:25:07]} Nxd7 {[%emt 0:00:14]} 20. Qg4 {[%emt 0:00:15]} Rae8 {[%emt 0:11:39]} 21. Ne2 {[%emt 0:03:18]} Ne5 {[%emt 0:10:51]} 22. Qh3 {[%emt 0:06:11]} Nxd3 {[%emt 0:04:03]} 23. Qxd3 {[%emt 0:00:06]} Bd6 {[%emt 0:06:18]} 24. Nc3 {[%emt 0:09:47]} a6 {[%emt 0:03:19]} 25. g3 {[%emt 0:00:19]} Rc8 {[%emt 0:05:26]} 26. Re2 {[%emt 0:02:34]} Rc4 {[%emt 0:07:42]} 1/2-1/2